bitfinex/quotes_SOLUSD_20240613
["timestamp","ask_amount","ask_price","bid_price","bid_amount"]
[1718238781475,8.06,154.82,154.77,8.06]
[1718238782883,8.06,154.83,154.77,8.06]
[1718238783788,8.06,154.83,154.74,6.0825]
[1718238783968,8.06,154.82,154.77,8.06]
[1718238784168,8.06,154.82,154.76,8.06]
[1718238784985,8.06,154.81,154.73,0.17]
[1718238785190,8.06,154.81,154.76,8.06]
[1718238785389,8.06,154.8,154.71,15.8262]
[1718238785591,8.06,154.8,154.74,8.06]
[1718238785790,8.06,154.79,154.74,8.06]
[1718238786095,8.06,154.8,154.74,8.06]
[1718238787289,8.06,154.81,154.75,8.06]
[1718238787495,8.06,154.83,154.77,8.06]
[1718238788294,8.06,154.82,154.76,8.06]
[1718238789197,6.2756,154.85,154.76,8.06]
[1718238789373,6.2756,154.85,154.78,8.06]
[1718238789570,8.06,154.83,154.77,8.06]
[1718238789828,8.06,154.82,154.76,8.06]
[1718238789977,8.06,154.83,154.77,8.06]
[1718238790172,8.06,154.83,154.74,6.6289]
[1718238790375,8.06,154.83,154.77,8.06]
[1718238790615,6.2756,154.85,154.77,8.06]
[1718238790778,8.06,154.84,154.79,8.06]
[1718238794599,8.06,154.86,154.81,8.06]
[1718238795401,8.06,154.86,154.8,8.06]
[1718238795811,0.8413107,154.87,154.81,8.06]
[1718238795985,8.9013107,154.87,154.81,8.06]
[1718238798816,8.06,154.86,154.8,8.06]
[1718238800082,8.06,154.85,154.78,0.17]
[1718238800282,8.06,154.85,154.78,20.17]
[1718238800483,8.06,154.85,154.79,8.06]
[1718238802008,8.06,154.83,154.77,8.06]
[1718238802210,8.06,154.82,154.76,8.06]
[1718238802708,8.06,154.81,154.74,6.6289]
[1718238802888,8.06,154.81,154.75,8.06]
[1718238803606,8.06,154.82,154.76,8.06]
[1718238804118,8.06,154.82,154.74,6.6289]
[1718238804318,8.06,154.81,154.73,15.6068]
[1718238804490,8.06,154.81,154.75,8.06]
[1718238805394,6.6552,154.83,154.74,20.0]
[1718238805597,8.06,154.82,154.76,8.06]
[1718238806609,8.06,154.82,154.74,20.0]
[1718238806817,8.06,154.82,154.77,8.06]
[1718238807240,7.4879107,154.87,154.8,8.06]
[1718238807528,8.06,154.86,154.8,8.06]
[1718238810900,7.6579107,154.87,154.76,6.6437]
[1718238811092,8.06,154.85,154.79,8.06]
[1718238813819,8.06,154.83,154.76,6.6437]
[1718238813993,8.06,154.82,154.74,20.0]
[1718238814308,8.06,154.82,154.76,8.06]
[1718238815911,8.06,154.82,154.74,20.0]
[1718238815912,8.06,154.82,154.77,8.06]
[1718238816105,8.06,154.82,154.74,20.0]
[1718238816106,8.06,154.84,154.78,8.06]
[1718238816827,8.06,154.85,154.79,8.06]
[1718238820127,0.8413107,154.87,154.79,8.06]
[1718238820421,8.06,154.85,154.79,8.06]
[1718238821925,0.8413107,154.87,154.8,8.06]
[1718238822132,8.06,154.86,154.8,8.06]
[1718238824620,8.9013107,154.87,154.81,8.06]
[1718238827545,8.06,154.86,154.8,8.06]
[1718238829035,8.06,154.86,154.78,21.5182]
[1718238829856,1.0113107,154.87,154.74,22.7472]
[1718238830022,8.06,154.83,154.77,8.06]
[1718238830210,0.68,154.86,154.74,22.7472]
[1718238830211,8.06,154.82,154.74,22.7472]
[1718238830417,8.06,154.82,154.76,8.06]
[1718238831532,8.06,154.83,154.78,8.06]
[1718238831733,8.06,154.83,154.75,0.17]
[1718238831914,8.06,154.83,154.78,8.06]
[1718238832115,8.06,154.83,154.74,22.7472]
[1718238832326,8.06,154.83,154.77,8.06]
[1718238833740,0.68,154.86,154.77,8.06]
[1718238833940,8.06,154.84,154.78,8.06]
[1718238836947,0.17,154.86,154.78,8.06]
[1718238837159,0.17,154.86,154.8,8.06]
[1718238837324,8.06,154.85,154.79,8.06]
[1718238837731,8.06,154.85,154.8,8.06]
[1718238838923,8.06,154.85,154.79,8.06]
[1718238840542,0.8413107,154.87,154.8,8.06]
[1718238840755,8.06,154.86,154.8,8.06]
[1718238841260,8.06,154.86,154.76,0.17]
[1718238841438,8.06,154.85,154.8,8.06]
[1718238841749,8.06,154.85,154.79,8.06]
[1718238842124,8.06,154.85,154.75,20.0]
[1718238842125,8.06,154.83,154.75,20.0]
[1718238842352,8.06,154.82,154.77,8.06]
[1718238843450,0.17,154.85,154.77,8.06]
[1718238843451,8.06,154.83,154.77,8.06]
[1718238843959,8.06,154.84,154.78,8.06]
[1718238844827,0.17,154.86,154.78,8.06]
[1718238845028,8.06,154.84,154.78,8.06]
[1718238845950,8.06,154.84,154.75,20.0]
[1718238846148,8.06,154.83,154.77,8.06]
[1718238847362,0.17,154.86,154.78,8.06]
[1718238847854,8.06,154.84,154.78,8.06]
[1718238848267,0.17,154.86,154.78,8.06]
[1718238848452,8.06,154.84,154.78,8.06]
[1718238848960,0.17,154.86,154.78,8.06]
[1718238849132,8.06,154.84,154.79,8.06]
[1718238850561,8.06,154.84,154.78,8.06]
[1718238854759,8.06,154.85,154.79,8.06]
[1718238855059,8.06,154.84,154.78,8.06]
[1718238855563,0.17,154.86,154.78,8.06]
[1718238856740,0.34,154.86,154.75,20.0]
[1718238856941,0.34,154.86,154.78,8.06]
[1718238857168,0.34,154.86,154.77,8.06]
[1718238857462,8.06,154.83,154.77,8.06]
[1718238857960,8.06,154.84,154.78,8.06]
[1718238860487,0.17,154.86,154.78,8.06]
[1718238860863,8.06,154.84,154.78,8.06]
[1718238862171,0.17,154.86,154.78,8.06]
[1718238862375,8.06,154.84,154.78,8.06]
[1718238865950,0.17,154.86,154.78,8.06]
[1718238866165,8.06,154.84,154.78,8.06]
[1718238869675,0.17,154.86,154.78,8.06]
[1718238870097,8.06,154.84,154.78,8.06]
[1718238870254,0.17,154.86,154.78,8.06]
[1718238870581,8.06,154.84,154.78,8.06]
[1718238870959,0.17,154.86,154.78,8.06]
[1718238871158,8.06,154.85,154.79,8.06]
[1718238873082,8.06,154.85,154.79,24.2482]
[1718238874382,0.8413107,154.87,154.8,6.1729]
[1718238874565,0.8413107,154.87,154.81,8.06]
[1718238874767,8.9013107,154.87,154.81,8.06]
[1718238875585,8.06,154.86,154.8,14.2329]
[1718238879873,8.06,154.86,154.8,6.1729]
[1718238880274,8.06,154.86,154.8,14.2329]
[1718238885500,8.9013107,154.87,154.81,8.06]
[1718238887903,8.9013107,154.87,154.8,6.1729]
[1718238888281,8.9013107,154.87,154.81,8.06]
[1718238890620,0.8413107,154.87,154.81,8.06]
[1718238890906,8.9013107,154.87,154.81,8.06]
[1718238891405,8.9013107,154.87,154.8,6.1729]
[1718238891703,8.06,154.86,154.8,14.2329]
[1718238892504,8.9013107,154.87,154.81,8.06]
[1718238893109,8.06,154.86,154.8,14.2329]
[1718238895300,0.8413107,154.87,154.8,6.1729]
[1718238895504,8.06,154.85,154.8,14.2329]
[1718238896597,0.17,154.86,154.79,16.1882]
[1718238896809,8.06,154.82,154.76,8.06]
[1718238897795,8.06,154.82,154.77,8.06]
[1718238898003,8.06,154.83,154.77,8.06]
[1718238898505,8.06,154.82,154.76,8.06]
[1718238898713,8.06,154.82,154.77,20.0]
[1718238899597,8.06,154.8,154.75,22.1777]
[1718238900303,8.06,154.81,154.75,30.2377]
[1718238900698,8.06,154.8,154.75,22.1777]
[1718238901008,8.06,154.77,154.71,22.4307]
[1718238901312,8.06,154.76,154.71,22.4307]
[1718238901490,8.06,154.75,154.71,22.4307]
[1718238901690,8.06,154.78,154.72,8.06]
[1718238901887,16.4105,154.84,154.75,8.06]
[1718238902087,0.8413107,154.87,154.77,8.06]
[1718238902309,8.06,154.82,154.77,8.06]
[1718238903191,8.06,154.81,154.76,15.6419]
[1718238903394,8.06,154.8,154.76,15.6419]
[1718238904317,8.06,154.78,154.72,16.596]
[1718238904502,8.06,154.78,154.72,24.656]
[1718238905013,8.06,154.76,154.72,16.596]
[1718238905519,8.06,154.74,154.68,23.6043]
[1718238905810,8.06,154.75,154.69,8.06]
[1718238906114,8.06,154.77,154.71,8.06]
[1718238908302,8.06,154.78,154.72,8.06]
[1718238910619,8.06,154.78,154.69,0.17]
[1718238910814,8.06,154.77,154.69,20.34]
[1718238911016,0.17,154.82,154.72,8.06]
[1718238911313,8.06,154.77,154.69,20.34]
[1718238911519,8.06,154.76,154.69,20.0]
[1718238911819,8.06,154.76,154.71,8.06]
[1718238912200,8.06,154.76,154.7,8.06]
[1718238913221,8.06,154.8,154.69,20.0]
[1718238913398,8.06,154.74,154.68,15.5443]
[1718238913601,8.06,154.69,154.62,15.6696]
[1718238913806,0.17,154.72,154.63,8.06]
[1718238913807,8.06,154.68,154.63,8.06]
[1718238914115,8.06,154.65,154.58,15.6696]
[1718238914345,8.06,154.63,154.58,15.6696]
[1718238914503,8.06,154.63,154.49,119.97378965]
[1718238914504,8.06,154.62,154.54,15.4638]
[1718238914703,8.06,154.63,154.57,8.06]
[1718238914910,8.06,154.63,154.58,8.06]
[1718238915698,8.06,154.63,154.54,15.4638]
[1718238916034,0.17,154.64,154.56,8.06]
[1718238916195,0.17,154.68,154.58,8.06]
[1718238916400,8.06,154.64,154.58,8.06]
[1718238916906,0.34,154.68,154.58,8.06]
[1718238917118,8.06,154.64,154.58,8.06]
[1718238918320,8.06,154.64,154.55,0.17]
[1718238918544,8.06,154.63,154.55,0.34]
[1718238918821,8.06,154.62,154.56,8.06]
[1718238919200,8.06,154.62,154.54,15.4638]
[1718238919412,8.06,154.62,154.56,8.06]
[1718238919627,0.17,154.66,154.57,8.06]
[1718238919807,8.06,154.63,154.57,8.06]
[1718238920214,0.17,154.66,154.58,8.06]
[1718238920409,8.06,154.67,154.61,8.06]
[1718238920613,31.14496269,154.75,154.62,8.06]
[1718238920913,459.6,154.77,154.61,16.0381]
[1718238920914,6.5403,154.72,154.61,16.0381]
[1718238921112,8.06,154.71,154.65,8.06]
[1718238921304,8.06,154.71,154.66,8.06]
[1718238922098,15.4979,154.79,154.64,8.06]
[1718238922303,8.06,154.76,154.7,8.06]
[1718238922818,15.4979,154.79,154.71,8.06]
[1718238923025,8.06,154.78,154.73,8.06]
[1718238923205,5.89447787,154.87,154.69,0.17]
[1718238923206,6.4514,154.84,154.76,8.06]
[1718238923414,8.06,154.82,154.76,8.06]
[1718238924511,15.9110107,154.87,154.75,0.17]
[1718238924729,8.06,154.84,154.79,8.06]
[1718238925006,0.8413107,154.87,154.77,0.17]
[1718238925216,0.8413107,154.87,154.77,20.51]
[1718238926508,0.8413107,154.87,154.78,15.2254]
[1718238926708,0.8413107,154.87,154.79,20.68]
[1718238926931,0.8413107,154.87,154.8,24.04]
[1718238927147,0.8413107,154.87,154.81,20.51]
[1718238930115,0.8413107,154.87,154.81,20.0]
[1718238930347,0.8413107,154.87,154.79,20.0]
[1718238930542,0.8413107,154.87,154.78,15.2254]
[1718238931624,0.8413107,154.87,154.79,0.17]
[1718238932543,0.8413107,154.87,154.79,20.17]
[1718238933133,0.8413107,154.87,154.74,24.04]
[1718238933328,0.51,154.86,154.77,20.0]
[1718238933527,0.8413107,154.87,154.77,20.0]
[1718238933731,0.17,154.86,154.74,24.04]
[1718238933930,0.17,154.86,154.73,16.0831]
[1718238933931,0.68,154.86,154.73,16.0831]
[1718238934143,45.68,154.86,154.73,16.0831]
[1718238934856,45.68,154.86,154.72,6.5248]
[1718238934857,169.72,154.86,154.72,6.5248]
[1718238935024,0.17,154.82,154.68,16.3176]
[1718238935225,45.68,154.82,154.68,16.3176]
[1718238935938,45.34,154.82,154.69,24.04]
[1718238936145,45.17,154.82,154.69,24.04]
[1718238936350,45.17,154.82,154.7,20.68]
[1718238936941,0.17,154.81,154.7,20.0]
[1718238937245,0.68,154.81,154.7,20.0]
[1718238937432,0.51,154.81,154.7,20.0]
[1718238937627,0.34,154.81,154.7,20.0]
[1718238938032,0.17,154.8,154.7,20.0]
[1718238938234,0.34,154.8,154.7,20.0]
[1718238940253,45.0,154.82,154.71,0.17]
[1718238940953,45.0,154.82,154.72,0.17]
[1718238941256,0.17,154.81,154.68,16.3176]
[1718238941468,0.17,154.77,154.64,16.0813]
[1718238941631,0.51,154.77,154.64,16.0813]
[1718238941825,0.17,154.76,154.64,16.0813]
[1718238942032,45.0,154.77,154.64,16.0813]
[1718238942966,0.17,154.76,154.64,16.0813]
[1718238943248,0.17,154.75,154.65,20.0]
[1718238943469,0.51,154.75,154.65,20.0]
[1718238943669,0.17,154.74,154.65,20.0]
[1718238944361,0.17,154.73,154.6,39.3539]
[1718238944538,0.51,154.73,154.6,39.3539]
[1718238944747,6.2751,154.72,154.6,15.3139]
[1718238945062,45.0,154.71,154.6,15.3139]
[1718238945252,6.2751,154.72,154.6,15.3139]
[1718238945754,6.2751,154.72,154.61,0.17]
[1718238946059,6.2751,154.72,154.61,0.68]
[1718238947146,6.2751,154.72,154.61,20.68]
[1718238947347,45.0,154.71,154.61,20.51]
[1718238948765,6.2751,154.72,154.61,20.51]
[1718238950541,45.0,154.71,154.61,20.51]
[1718238951145,45.0,154.71,154.61,20.17]
[1718238951338,45.0,154.71,154.61,20.0]
[1718238951553,0.34,154.7,154.6,15.3139]
[1718238951871,0.17,154.69,154.6,15.3139]
[1718238952646,0.34,154.7,154.6,15.3139]
[1718238954163,15.9362,154.69,154.55,22.7948]
[1718238954370,45.51,154.68,154.56,20.0]
[1718238954562,0.17,154.67,154.56,20.0]
[1718238959678,45.51,154.68,154.57,0.34]
[1718238960368,45.51,154.68,154.55,23.1348]
[1718238960369,6.2169,154.67,154.55,16.1329]
[1718238960566,45.68,154.66,154.56,20.0]
[1718238961275,45.68,154.66,154.52,21.6619]
[1718238961276,69.72,154.66,154.52,21.6619]
[1718238961474,15.2047,154.63,154.48,65.41661262]
[1718238961678,15.2047,154.63,154.48,15.0616]
[1718238961679,45.68,154.62,154.48,15.0616]
[1718238962687,6.5008,154.61,154.48,15.0616]
[1718238962995,69.72,154.6,154.48,15.0616]
[1718238963286,69.72,154.6,154.44,16.5348]
[1718238963457,0.17,154.58,154.44,16.5348]
[1718238963652,45.68,154.58,154.44,16.5348]
[1718238964273,45.51,154.58,154.44,16.5348]
[1718238964473,45.0,154.57,154.46,0.17]
[1718238964673,0.34,154.58,154.46,0.34]
[1718238964992,0.34,154.58,154.47,0.17]
[1718238965295,0.17,154.57,154.45,20.0]
[1718238965454,0.68,154.57,154.44,16.5348]
[1718238965667,24.72,154.57,154.44,16.5348]
[1718238965974,45.0,154.56,154.44,16.5348]
[1718238966284,0.34,154.55,154.44,16.5348]
[1718238966453,45.0,154.56,154.44,16.5348]
[1718238966656,0.17,154.6,154.46,0.17]
[1718238966851,65.68,154.6,154.46,20.68]
[1718238967072,65.68,154.6,154.46,0.51]
[1718238967255,165.68,154.6,154.46,20.0]
[1718238967554,165.68,154.6,154.45,20.0]
[1718238968575,165.68,154.6,154.46,0.34]
[1718238968959,0.17,154.56,154.45,20.0]
[1718238969185,45.68,154.56,154.45,20.0]
[1718238969761,0.17,154.58,154.46,0.17]
[1718238970061,45.68,154.58,154.46,20.68]
[1718238970472,16.2177,154.59,154.46,0.68]
[1718238971264,16.2177,154.59,154.46,0.51]
[1718238971464,16.2177,154.59,154.47,0.17]
[1718238972274,6.5008,154.61,154.48,0.17]
[1718238972465,39.4308,154.63,154.5,24.21]
[1718238972466,15.3908,154.63,154.5,24.21]
[1718238972787,15.3908,154.63,154.52,16.1187]
[1718238973366,6.6043,154.65,154.54,0.17]
[1718238973774,15.3908,154.67,154.54,0.17]
[1718238975589,30.2906,154.69,154.54,0.17]
[1718238976261,6.2506,154.69,154.54,100.17]
[1718238976464,6.2506,154.69,154.57,6.0405]
[1718238976665,6.2506,154.69,154.58,0.68]
[1718238977159,259.6,154.73,154.59,16.4287]
[1718238977360,6.2198,154.74,154.61,0.17]
[1718238979697,16.0736,154.76,154.61,0.17]
[1718238979865,6.0756,154.78,154.64,6.015]
[1718238980071,6.0756,154.78,154.65,20.68]
[1718238981867,6.0756,154.78,154.65,20.0]
[1718238982102,6.0756,154.78,154.64,6.015]
[1718238982299,6.0756,154.78,154.65,0.17]
[1718238982474,0.17,154.77,154.65,0.68]
[1718238982881,45.17,154.77,154.65,0.68]
[1718238983288,0.17,154.76,154.64,6.015]
[1718238983489,0.51,154.76,154.64,6.015]
[1718238983693,0.17,154.75,154.64,6.015]
[1718238983901,0.51,154.75,154.64,6.015]
[1718238984076,0.34,154.75,154.65,0.17]
[1718238984395,0.34,154.75,154.64,6.015]
[1718238984696,0.34,154.75,154.65,0.17]
[1718238985036,0.34,154.75,154.64,6.015]
[1718238985173,0.34,154.74,154.64,6.015]
[1718238985497,0.17,154.73,154.64,6.015]
[1718238986172,45.17,154.75,154.64,6.015]
[1718238986370,0.34,154.74,154.64,6.015]
[1718238986987,0.17,154.71,154.6,6.0395]
[1718238987192,24.21,154.69,154.56,6.4779]
[1718238987497,0.17,154.67,154.56,6.4779]
[1718238988797,45.51,154.68,154.56,6.4779]
[1718238989013,45.0,154.68,154.58,0.17]
[1718238989316,16.0084,154.72,154.6,0.17]
[1718238989476,16.0084,154.72,154.6,20.68]
[1718238989877,40.0484,154.72,154.56,6.4779]
[1718238990079,20.0,154.71,154.56,6.4779]
[1718238990312,24.04,154.69,154.56,6.4779]
[1718238990483,0.17,154.67,154.56,6.4779]
[1718238990685,0.34,154.67,154.56,6.4779]
[1718238990997,0.17,154.66,154.56,6.4779]
[1718238991395,0.17,154.67,154.56,6.4779]
[1718238993595,45.0,154.68,154.56,6.4779]
[1718238994001,40.0484,154.72,154.6,0.17]
[1718238994213,40.0484,154.72,154.6,0.68]
[1718238995400,45.34,154.71,154.6,0.68]
[1718238997291,45.34,154.71,154.6,0.34]
[1718238997492,0.34,154.7,154.58,0.17]
[1718238997699,45.34,154.71,154.6,0.34]
[1718239000928,45.0,154.71,154.61,0.17]
[1718239002408,45.0,154.71,154.62,6.6093]
[1718239003538,45.0,154.71,154.62,6.4393]
[1718239005712,24.04,154.75,154.63,0.17]
[1718239005918,45.51,154.74,154.63,0.51]
[1718239009507,45.51,154.74,154.63,0.34]
[1718239009709,45.51,154.74,154.62,6.4393]
[1718239010525,0.17,154.71,154.62,6.5309]
[1718239010731,45.68,154.71,154.62,6.5309]
[1718239012717,45.68,154.71,154.59,16.4287]
[1718239012919,0.17,154.68,154.59,16.4287]
[1718239013225,24.04,154.66,154.59,16.4287]
[1718239013429,0.34,154.65,154.59,16.4287]
[1718239013607,45.34,154.65,154.59,16.4287]
[1718239014247,0.17,154.64,154.59,16.4287]
[1718239015728,45.34,154.65,154.59,16.4287]
[1718239016539,0.17,154.64,154.59,16.4287]
[1718239018443,45.34,154.65,154.59,16.4287]
[1718239020733,24.04,154.63,154.55,16.3824]
[1718239021036,0.17,154.61,154.55,16.3824]
[1718239021238,24.04,154.6,154.55,16.3824]
[1718239021409,65.68,154.59,154.51,16.3824]
[1718239022620,24.04,154.57,154.51,16.3824]
[1718239022821,45.0,154.56,154.51,16.3824]
[1718239023820,0.51,154.59,154.51,16.3824]
[1718239024136,0.34,154.59,154.51,16.3824]
[1718239024934,20.34,154.59,154.51,16.3824]
[1718239025134,45.0,154.58,154.51,16.3824]
[1718239026045,22.2431,154.67,154.51,16.3824]
[1718239026247,20.0,154.62,154.51,16.3824]
[1718239026950,19.5,154.62,154.51,16.3824]
[1718239027131,0.17,154.61,154.51,16.3824]
[1718239027334,0.17,154.6,154.51,16.3824]
[1718239027627,0.51,154.6,154.51,16.3824]
[1718239027937,0.17,154.59,154.51,16.3824]
[1718239028321,24.04,154.55,154.4,21.6871]
[1718239028522,24.04,154.52,154.4,21.6871]
[1718239028736,0.17,154.51,154.4,21.6871]
[1718239029042,45.0,154.51,154.4,21.6871]
[1718239029949,45.0,154.51,154.41,0.68]
[1718239030327,0.51,154.54,154.41,0.68]
[1718239030532,0.34,154.54,154.41,0.68]
[1718239030746,65.34,154.55,154.43,0.17]
[1718239030945,65.34,154.55,154.43,0.68]
[1718239035539,0.34,154.54,154.42,16.25]
[1718239035746,0.17,154.52,154.42,16.25]
[1718239035950,65.51,154.52,154.42,16.25]
[1718239036246,45.0,154.52,154.42,16.25]
[1718239037042,45.0,154.52,154.43,0.17]
[1718239038152,45.0,154.52,154.43,0.34]
[1718239038566,24.04,154.56,154.44,6.3095]
[1718239038855,65.51,154.55,154.44,6.3095]
[1718239039756,65.51,154.55,154.44,6.1395]
[1718239041859,0.17,154.54,154.44,6.1395]
[1718239043766,0.17,154.52,154.44,6.1395]
[1718239043949,20.34,154.52,154.44,6.1395]
[1718239044146,24.21,154.5,154.44,6.1395]
[1718239044346,45.17,154.49,154.44,6.1395]
[1718239044552,20.17,154.48,154.44,6.1395]
[1718239044763,45.0,154.47,154.44,6.1395]
[1718239045963,24.04,154.5,154.44,6.1395]
[1718239046264,65.0,154.49,154.44,6.1395]
[1718239048347,0.17,154.48,154.44,6.1395]
[1718239049464,65.0,154.49,154.44,6.1395]
[1718239050566,65.0,154.49,154.42,16.25]
[1718239050567,0.51,154.48,154.42,16.25]
[1718239050758,0.17,154.47,154.42,16.25]
[1718239052752,65.17,154.47,154.42,16.25]
[1718239052954,0.17,154.46,154.42,16.25]
[1718239054048,0.34,154.46,154.42,16.25]
[1718239054252,0.17,154.45,154.42,16.25]
[1718239054786,0.17,154.46,154.42,16.25]
[1718239055249,65.0,154.47,154.42,16.25]
[1718239056953,8.06,154.43,154.42,16.25]
[1718239057273,52.54947334,154.56,154.42,24.31]
[1718239057450,8.06,154.48,154.42,24.31]
[1718239057652,8.06,154.47,154.42,24.31]
[1718239057877,8.06,154.47,154.42,16.25]
[1718239058279,8.06,154.46,154.42,16.25]
[1718239058879,24.16,154.52,154.42,16.25]
[1718239059084,65.68,154.51,154.42,16.25]
[1718239068395,24.16,154.49,154.42,16.25]
[1718239068593,65.51,154.48,154.42,16.25]
[1718239068802,0.17,154.47,154.42,16.25]
[1718239069985,45.0,154.48,154.42,16.25]
[1718239070404,0.17,154.47,154.42,16.25]
[1718239074398,45.0,154.48,154.42,16.25]
[1718239077793,259.6,154.55,154.42,16.25]
[1718239078001,44.16,154.54,154.42,16.25]
[1718239078905,8.05,154.47,154.42,16.25]
[1718239079091,8.05,154.46,154.42,16.25]
[1718239080314,8.05,154.45,154.42,16.25]
[1718239081481,8.05,154.44,154.42,16.25]
[1718239081688,8.05,154.43,154.42,16.25]
[1718239086090,0.34,154.51,154.42,16.25]
[1718239086294,8.05,154.44,154.42,16.25]
[1718239086712,8.05,154.43,154.42,16.25]
[1718239088111,32.2,154.48,154.42,16.25]
[1718239088286,8.05,154.43,154.42,16.25]
[1718239092017,45.17,154.47,154.42,16.25]
[1718239092319,8.05,154.46,154.42,16.25]
[1718239094624,0.17,154.53,154.42,16.25]
[1718239094803,8.05,154.46,154.42,16.25]
[1718239096016,8.05,154.45,154.42,16.25]
[1718239098512,45.68,154.53,154.42,16.25]
[1718239098803,8.05,154.45,154.42,16.25]
[1718239100222,8.05,154.46,154.42,16.25]
[1718239105525,25.05559302,154.54,154.42,16.25]
[1718239105719,8.05,154.49,154.44,8.05]
[1718239106034,20.0,154.54,154.45,6.0545]
[1718239106220,8.05,154.5,154.45,6.0545]
[1718239106817,20.0,154.54,154.45,6.0545]
[1718239107021,8.05,154.5,154.45,6.0545]
[1718239107607,8.05,154.49,154.45,6.0545]
[1718239107815,8.05,154.46,154.45,6.0545]
[1718239108022,8.05,154.46,154.42,16.25]
[1718239111727,8.05,154.44,154.42,16.25]
[1718239115339,8.05,154.48,154.42,16.25]
[1718239115635,8.05,154.43,154.42,16.25]
[1718239116237,8.05,154.43,154.38,15.9377]
[1718239116422,8.05,154.42,154.38,15.9377]
[1718239120641,8.05,154.43,154.38,15.9377]
[1718239120948,8.05,154.44,154.38,23.9877]
[1718239126551,45.0,154.47,154.39,8.05]
[1718239126748,8.05,154.46,154.4,8.05]
[1718239127254,8.05,154.46,154.41,8.05]
[1718239127931,8.05,154.46,154.4,8.05]
[1718239128345,8.05,154.45,154.4,8.05]
[1718239130850,8.05,154.46,154.4,8.05]
[1718239132451,21.4569,154.54,154.43,8.05]
[1718239132754,8.05,154.49,154.43,8.05]
[1718239133345,8.05,154.48,154.42,8.05]
[1718239135254,8.05,154.46,154.4,8.05]
[1718239139654,8.05,154.47,154.41,8.05]
[1718239140775,8.05,154.48,154.42,8.05]
[1718239140981,8.05,154.48,154.43,8.05]
[1718239141275,8.05,154.48,154.42,8.05]
[1718239141644,8.05,154.49,154.42,8.05]